fUSD/lending_fUSD_20250428
["ID","MTS","AMOUNT","RATE_DAILY","PERIOD"]
[359196565,1745804051561,480.0,0.00041095,30]
[359196566,1745804051784,362.32908436,0.00041095,30]
[359196567,1745804052227,480.0,0.00041095,30]
[359196568,1745804052560,480.0,0.00041095,30]
[359196569,1745804053421,480.0,0.00041095,30]
[359196570,1745804054326,480.0,0.00041095,30]
[359196571,1745804054658,480.0,0.00041095,30]
[359196572,1745804054906,480.0,0.00041095,30]
[359196573,1745804054936,480.0,0.00041095,30]
[359196574,1745804055222,480.0,0.00041095,30]
[359196575,1745804055320,311.19191886,0.00041095,30]
[359196576,1745804055500,158.50849119,0.00041095,30]
[359196577,1745804056747,400.0,0.00041095,30]
[359196578,1745804057577,400.0,0.00041095,30]
[359196579,1745804059071,475.6835307,0.00041095,30]
[359196580,1745804060285,480.0,0.00041095,30]
[359196581,1745804060516,480.0,0.00041095,30]
[359196582,1745804060753,480.0,0.00041095,30]
[359196583,1745804061079,480.0,0.00041095,30]
[359196584,1745804061330,480.0,0.00041095,30]
[359196585,1745804061480,483.48136776,0.00041095,30]
[359196586,1745804061563,218.11784945,0.00041095,30]
[359196587,1745804062580,480.0,0.00041095,30]
[359196588,1745804062818,391.02907072,0.00041095,30]
[359196589,1745804063979,480.0,0.00041095,30]
[359196590,1745804064389,345.45379726,0.00041095,30]
[359196591,1745804066665,451.663309,0.00041,30]
[359196592,1745804066784,480.0,0.00041095,30]
[359196593,1745804067054,278.02929131,0.00041095,30]
[359196594,1745804067665,500.0,0.00040847,30]
[359196595,1745804068841,5330.4,0.00041095,30]
[359196596,1745804069463,5330.4,0.00041095,30]
[359196597,1745804069493,488.58550652,0.00041095,30]
[359196598,1745804069712,5330.4,0.00041095,30]
[359196599,1745804069984,5330.4,0.00041095,30]
[359196600,1745804070236,5330.4,0.00041095,30]
[359196601,1745804070487,5330.4,0.00041095,30]
[359196602,1745804070739,5330.4,0.00041095,30]
[359196603,1745804070985,5330.4,0.00041095,30]
[359196604,1745804071229,5330.4,0.00041095,30]
[359196605,1745804071463,5330.4,0.00041095,30]
[359196606,1745804071715,5330.4,0.00041095,30]
[359196607,1745804071992,5330.4,0.00041095,30]
[359196608,1745804072035,465.55548808,0.00041095,30]
[359196609,1745804072247,5330.4,0.00041095,30]
[359196610,1745804072496,5330.4,0.00041095,30]
[359196611,1745804072734,5330.4,0.00041095,30]
[359196612,1745804072991,5330.4,0.00041095,30]
[359196613,1745804073221,5330.4,0.00041095,30]
[359196614,1745804073832,5330.4,0.00041095,30]
[359196615,1745804074091,5330.4,0.00041095,30]
[359196616,1745804074237,480.0,0.00041095,30]
[359196617,1745804074350,480.0,0.00041095,30]
[359196618,1745804074382,5330.4,0.00041095,30]
[359196619,1745804074643,345.84214677,0.00041095,30]
[359196620,1745804074677,5330.4,0.00041095,30]
[359196621,1745804074706,505.73820009,0.00041095,30]
[359196622,1745804074845,5330.4,0.00041095,30]
[359196623,1745804075019,480.0,0.00041095,30]
[359196624,1745804075083,5330.4,0.00041095,30]
[359196625,1745804075537,5330.4264,0.00041095,30]
[359196626,1745804075794,190.95299464,0.00041095,30]
[359196627,1745804076191,480.0,0.00041095,30]
[359196628,1745804076443,397.14082961,0.00041095,30]
[359196629,1745804077292,198.85298759,0.00041095,30]
[359196630,1745804079115,222.55175617,0.00041095,30]
[359196631,1745804080070,480.0,0.00041095,30]
[359196632,1745804080326,507.00199167,0.00041095,30]
[359196633,1745804080546,966.47,0.00041095,30]
[359196634,1745804080774,966.47,0.00041095,30]
[359196635,1745804081007,966.47,0.00041095,30]
[359196636,1745804081290,966.47,0.00041095,30]
[359196637,1745804081526,966.47,0.00041095,30]
[359196638,1745804081750,966.47,0.00041095,30]
[359196639,1745804082142,966.47,0.00041095,30]
[359196640,1745804082390,563.37779792,0.00041095,30]
[359196641,1745804082427,966.47,0.00041095,30]
[359196642,1745804082630,966.47,0.00041095,30]
[359196643,1745804082875,966.47,0.00041095,30]
[359196644,1745804083119,966.47,0.00041095,30]
[359196645,1745804083189,293.81714338,0.00041095,30]
[359196646,1745804083369,966.47,0.00041095,30]
[359196647,1745804083606,966.47,0.00041095,30]
[359196648,1745804083870,966.47,0.00041095,30]
[359196649,1745804084129,966.47,0.00041095,30]
[359196650,1745804084174,480.0,0.00041095,30]
[359196651,1745804084372,966.47,0.00041095,30]
[359196652,1745804084559,215.9981067,0.00041095,30]
[359196653,1745804084622,966.47,0.00041095,30]
[359196654,1745804084859,966.47,0.00041095,30]
[359196655,1745804085087,625.59951478,0.00041095,30]
[359196656,1745804085117,966.47,0.00041095,30]
[359196657,1745804085392,966.47,0.00041095,30]
[359196658,1745804085738,966.47,0.00041095,30]
[359196659,1745804086003,966.47,0.00041095,30]
[359196660,1745804086289,966.47,0.00041095,30]
[359196661,1745804086597,966.61381716,0.00041095,30]
[359196662,1745804088253,412.61559574,0.00041095,30]
[359196663,1745804088321,490.05,0.00041095,30]
[359196664,1745804088446,480.0,0.00041095,30]
[359196665,1745804088559,490.05,0.00041095,30]
[359196666,1745804088817,490.05,0.00041095,30]
[359196667,1745804089051,490.05,0.00041095,30]
[359196668,1745804089300,490.05,0.00041095,30]
[359196669,1745804089549,490.05,0.00041095,30]
[359196670,1745804089840,490.05,0.00041095,30]
[359196671,1745804090456,490.05,0.00041095,30]
[359196672,1745804090703,490.05,0.00041095,30]
[359196673,1745804090806,480.0,0.00041095,30]
[359196674,1745804090954,490.05,0.00041095,30]
[359196675,1745804091050,480.0,0.00041095,30]
[359196676,1745804091283,573.48232058,0.00041095,30]
[359196677,1745804091841,490.05,0.00041095,30]
[359196678,1745804092075,490.05,0.00041095,30]
[359196679,1745804092329,490.05,0.00041095,30]
[359196680,1745804092580,490.05,0.00041095,30]
[359196681,1745804092829,490.05,0.00041095,30]
[359196682,1745804093075,480.0,0.00041095,30]
[359196683,1745804093111,490.05,0.00041095,30]
[359196684,1745804093316,490.05,0.00041095,30]
[359196685,1745804093349,245.95922469,0.00041095,30]
[359196686,1745804093574,490.05,0.00041095,30]
[359196687,1745804094000,490.05,0.00041095,30]
[359196688,1745804094466,490.05,0.00041095,30]
[359196689,1745804094712,490.05,0.00041095,30]
[359196690,1745804094992,490.05,0.00041095,30]
[359196691,1745804095209,490.05,0.00041095,30]
[359196692,1745804095688,490.13,0.00041095,30]
[359196693,1745804096269,480.0,0.00041095,30]
[359196694,1745804096507,629.83926871,0.00041095,30]
[359196695,1745804097373,415.90814364,0.00041095,30]
[359196696,1745804097450,480.0,0.00041095,30]
[359196697,1745804097677,480.0,0.00041095,30]
[359196698,1745804097923,480.0,0.00041095,30]
[359196699,1745804098038,480.0,0.00041095,30]
[359196700,1745804098180,480.0,0.00041095,30]
[359196701,1745804098351,374.91523932,0.00041095,30]
[359196702,1745804098417,480.0,0.00041095,30]
[359196703,1745804098653,480.0,0.00041095,30]
[359196704,1745804098900,480.0,0.00041095,30]
[359196705,1745804099152,480.0,0.00041095,30]
[359196706,1745804099750,480.0,0.00041095,30]
[359196707,1745804099926,480.0,0.00041095,30]
[359196708,1745804099997,170.48090416,0.00041095,30]
[359196709,1745804100180,336.73974459,0.00041095,30]
[359196710,1745804100546,480.0,0.00041095,30]
[359196711,1745804100884,480.0,0.00041095,30]
[359196712,1745804100916,480.0,0.00041095,30]
[359196713,1745804101123,597.43818616,0.00041095,30]
[359196714,1745804101159,322.19588753,0.00041095,30]
[359196715,1745804102722,415.06262284,0.00041095,30]
[359196716,1745804103871,327.31,0.000401,120]
[359196717,1745804106201,464.48516264,0.00041095,30]
[359196718,1745804107219,480.0,0.00041095,30]
[359196719,1745804107487,480.0,0.00041095,30]
[359196720,1745804107721,235.65993949,0.00041095,30]
[359196721,1745804108104,486.13582819,0.00041095,30]
[359196722,1745804109585,505.1068152,0.00041095,30]
[359196723,1745804112083,480.0,0.00041095,30]
[359196724,1745804112310,480.0,0.00041095,30]
[359196725,1745804112361,480.0,0.00041095,30]
[359196726,1745804112560,480.0,0.00041095,30]
[359196727,1745804112604,582.09042794,0.00041095,30]
[359196728,1745804112820,480.0,0.00041095,30]
[359196729,1745804113077,480.0,0.00041095,30]
[359196730,1745804113413,480.0,0.00041095,30]
[359196731,1745804113667,480.0,0.00041095,30]
[359196732,1745804113906,480.0,0.00041095,30]
[359196733,1745804114177,480.0,0.00041095,30]
[359196734,1745804114439,480.0,0.00041095,30]
[359196735,1745804115040,319.39550348,0.00041095,30]
[359196736,1745804120310,414.70849135,0.00041095,30]
[359196737,1745804120627,402.56230022,0.00041095,30]
[359196738,1745804122799,407.14609961,0.00041095,30]
[359196739,1745804123938,480.0,0.00041095,30]
[359196740,1745804124203,480.0,0.00041095,30]
[359196741,1745804124505,341.04492466,0.00041095,30]
[359196742,1745804129141,480.0,0.00041095,30]
[359196743,1745804129467,480.0,0.00041095,30]
[359196744,1745804130272,480.0,0.00041095,30]
[359196745,1745804130659,480.0,0.00041095,30]
[359196746,1745804130907,305.06574736,0.00041095,30]
[359196747,1745804131224,431.60206182,0.00041095,30]
[359196748,1745804132894,480.0,0.00041095,30]
[359196749,1745804133145,480.0,0.00041095,30]
[359196750,1745804133357,416.04029602,0.00041095,30]
[359196751,1745804133428,307.05097468,0.00041095,30]
[359196752,1745804133698,491.11522421,0.00041095,30]
[359196753,1745804136900,433.56707166,0.00041095,30]
[359196754,1745804137109,480.0,0.00041095,30]
[359196755,1745804137347,480.0,0.00041095,30]
[359196756,1745804137609,480.0,0.00041095,30]
[359196757,1745804137857,563.23557639,0.00041095,30]
[359196758,1745804138163,417.24877905,0.00041095,30]
[359196759,1745804139033,480.0,0.00041095,30]
[359196760,1745804139277,480.0,0.00041095,30]
[359196761,1745804139522,255.62394449,0.00041095,30]
[359196762,1745804139827,480.0,0.00041095,30]
[359196763,1745804140070,337.26673801,0.00041095,30]
[359196764,1745804140384,423.82333677,0.00041095,30]
[359196765,1745804141925,480.0,0.00041095,30]
[359196766,1745804142156,480.0,0.00041095,30]
[359196767,1745804142402,450.52620798,0.00041095,30]
[359196768,1745804142432,500.0,0.00041,120]
[359196769,1745804142463,480.55456464,0.00041095,30]
[359196770,1745804144152,415.03025292,0.00041095,30]
[359196771,1745804147098,480.0,0.00041095,30]
[359196772,1745804147337,480.0,0.00041095,30]
[359196773,1745804147582,278.7071254,0.00041095,30]
[359196774,1745804147688,528.22563985,0.00041095,30]
[359196775,1745804148746,5000.0,0.00041095,30]
[359196776,1745804150510,480.0,0.00041095,30]
[359196777,1745804150804,441.68323274,0.00041095,30]
[359196778,1745804151147,480.0,0.00041095,30]
[359196779,1745804151389,480.0,0.00041095,30]
[359196780,1745804151660,215.6076068,0.00041095,30]
[359196781,1745804152550,415.02704194,0.00041095,30]
[359196782,1745804155516,431.07502323,0.00041095,30]
[359196783,1745804156365,403.62964676,0.00041095,30]
[359196784,1745804159521,436.46187645,0.00041095,30]
[359196785,1745804161394,467.36763677,0.00041095,30]
[359196786,1745804163151,446.43286971,0.00041095,30]
[359196787,1745804163611,432.25305199,0.00041095,30]
[359196788,1745804165431,500.0,0.00041095,30]
[359196789,1745804165794,537.81440345,0.00041095,30]
[359196790,1745804167512,480.0,0.00041095,30]
[359196791,1745804168008,497.21964942,0.00041095,30]
[359196792,1745804170031,504.85095395,0.00041095,30]
[359196793,1745804170066,480.0,0.00041095,30]
[359196794,1745804170320,353.31814184,0.00041095,30]
[359196795,1745804171359,500.0,0.00041095,30]
[359196796,1745804171600,515.31383177,0.00041095,30]
[359196797,1745804172318,480.0,0.00041095,30]
[359196798,1745804172568,350.18799682,0.00041095,30]
[359196799,1745804173586,434.16096413,0.00041095,30]
[359196800,1745804175376,480.0,0.00041095,30]
[359196801,1745804175623,391.43854638,0.00041095,30]
[359196802,1745804175733,480.0,0.00041095,30]
[359196803,1745804175977,480.0,0.00041095,30]
[359196804,1745804176090,480.0,0.00041095,30]
[359196805,1745804176213,492.09097583,0.00041095,30]
[359196806,1745804176325,480.0,0.00041095,30]
[359196807,1745804176548,422.70019137,0.00041095,30]
[359196808,1745804177296,310.53180868,0.00041095,30]
[359196809,1745804179442,409.97213916,0.00041095,30]
[359196810,1745804180049,480.0,0.00041095,30]
[359196811,1745804180313,331.57998304,0.00041095,30]
[359196812,1745804180863,480.0,0.00041095,30]
[359196813,1745804181500,502.52958456,0.00041095,30]
[359196814,1745804182294,496.50041137,0.00041095,30]
[359196815,1745804184648,414.75642971,0.00041095,30]
[359196816,1745804185401,416.12447737,0.00041095,30]
[359196817,1745804185990,480.0,0.00041095,30]
[359196818,1745804186287,343.87543789,0.00041095,30]
[359196819,1745804186990,421.29689804,0.00041095,30]
[359196820,1745804190347,423.91263521,0.00041095,30]
[359196821,1745804191235,480.0,0.00041095,30]
[359196822,1745804191527,480.0,0.00041095,30]
[359196823,1745804191807,480.0,0.00041095,30]
[359196824,1745804192058,480.0,0.00041095,30]
[359196825,1745804192331,480.0,0.00041095,30]
[359196826,1745804192566,315.04296485,0.00041095,30]
[359196827,1745804197625,480.0,0.00041095,30]
[359196828,1745804197826,480.0,0.00041095,30]
[359196829,1745804198091,480.0,0.00041095,30]
[359196830,1745804198335,255.25482045,0.00041095,30]
[359196831,1745804200317,480.0,0.00041095,30]
[359196832,1745804200610,531.40708614,0.00041095,30]
[359196833,1745804200907,480.0,0.00041095,30]
[359196834,1745804200940,410.16681459,0.00041095,30]
[359196835,1745804201165,480.0,0.00041095,30]
[359196836,1745804201475,480.0,0.00041095,30]
[359196837,1745804202075,557.43761127,0.00041095,30]
[359196838,1745804202691,480.0,0.00041095,30]
[359196839,1745804202946,335.62068816,0.00041095,30]
[359196840,1745804204766,403.40894942,0.00041095,30]
[359196841,1745804207329,405.89477828,0.00041095,30]
[359196842,1745804211079,454.32067263,0.00041095,30]
[359196843,1745804212096,480.0,0.00041095,30]
[359196844,1745804212335,480.0,0.00041095,30]
[359196845,1745804212619,442.14141776,0.00041095,30]
[359196846,1745804213764,480.0,0.00041095,30]
[359196847,1745804214016,378.57386782,0.00041095,30]
[359196848,1745804215263,417.06670581,0.00041095,30]
[359196849,1745804216009,480.0,0.00041095,30]
[359196850,1745804216257,480.0,0.00041095,30]
[359196851,1745804216492,259.04786548,0.00041095,30]
[359196852,1745804218339,480.0,0.00041095,30]
[359196853,1745804218930,480.0,0.00041095,30]
[359196854,1745804219192,480.0,0.00041095,30]
[359196855,1745804219417,609.39106587,0.00041095,30]
[359196856,1745804220355,480.0,0.00041095,30]
[359196857,1745804220922,388.15942695,0.00041095,30]
[359196858,1745804220992,436.12167478,0.00041095,30]
[359196859,1745804221712,480.0,0.00041095,30]
[359196860,1745804221966,363.2096438,0.00041095,30]
[359196861,1745804222412,480.0,0.00041095,30]
[359196862,1745804222662,480.0,0.00041095,30]
[359196863,1745804222819,511.62366421,0.00041095,30]
[359196864,1745804222907,509.11330081,0.00041095,30]
[359196865,1745804223885,480.0,0.00041095,30]
[359196866,1745804224132,362.15521085,0.00041095,30]
[359196867,1745804225131,421.33084713,0.00041095,30]
[359196868,1745804226383,480.0,0.00041095,30]
[359196869,1745804226624,346.25436969,0.00041095,30]
[359196870,1745804228441,409.89293584,0.00041095,30]
[359196871,1745804231596,480.0,0.00041095,30]
[359196872,1745804231850,349.56893472,0.00041095,30]
[359196873,1745804232063,413.60057926,0.00041095,30]
[359196874,1745804233688,480.0,0.00041095,30]
[359196875,1745804233929,379.65237279,0.00041095,30]
[359196876,1745804237985,480.0,0.00041095,30]
[359196877,1745804238387,357.87402266,0.00041095,30]
[359196878,1745804239526,480.0,0.00041095,30]
[359196879,1745804239688,480.0,0.00041095,30]
[359196880,1745804239828,345.69748778,0.00041095,30]
[359196881,1745804239915,623.87631583,0.00041095,30]
[359196882,1745804240583,480.0,0.00041095,30]
[359196883,1745804240819,480.0,0.00041095,30]
[359196884,1745804241242,447.38086836,0.00041095,30]
[359196885,1745804242210,480.0,0.00041095,30]
[359196886,1745804242476,373.02260113,0.00041095,30]
[359196887,1745804243246,233.55323307,0.00041095,30]
[359196888,1745804243507,410.34105462,0.00041095,30]
[359196889,1745804244202,419.95839129,0.00041095,30]
[359196890,1745804245041,480.0,0.00041095,30]
[359196891,1745804245297,349.01437969,0.00041095,30]
[359196892,1745804245329,413.98694703,0.00041095,30]
[359196893,1745804248621,480.0,0.00041095,30]
[359196894,1745804248888,471.4471734,0.00041095,30]
[359196895,1745804249706,411.86513664,0.00041095,30]
[359196896,1745804250763,528.27047569,0.00041095,30]
[359196897,1745804251582,263.58155499,0.00041095,30]
[359196898,1745804254575,480.0,0.00041095,30]
[359196899,1745804254830,367.91887523,0.00041095,30]
[359196900,1745804254896,480.0,0.00041095,30]
[359196901,1745804255125,520.5064158,0.00041095,30]
[359196902,1745804256968,411.91985146,0.00041095,30]
[359196903,1745804257045,480.0,0.00041095,30]
[359196904,1745804257098,480.0,0.00041095,30]
[359196905,1745804257299,334.20068151,0.00041095,30]
[359196906,1745804257339,480.0,0.00041095,30]
[359196907,1745804257576,178.3828973,0.00041095,30]
[359196908,1745804260749,404.50141195,0.00041095,30]
[359196909,1745804262774,480.0,0.00041095,30]
[359196910,1745804263045,341.26257882,0.00041095,30]
[359196911,1745804263077,480.0,0.00041095,30]
[359196912,1745804263294,344.06242092,0.00041095,30]
[359196913,1745804264503,-150.0,0.00019737,2]
[359196914,1745804265011,506.3,0.00041095,30]
[359196915,1745804266707,405.59306022,0.00041095,30]
[359196916,1745804267242,480.0,0.00041095,30]
[359196917,1745804267855,342.14438748,0.00041095,30]
[359196918,1745804269353,480.0,0.00041095,30]
[359196919,1745804269385,426.22,0.00041095,30]
[359196920,1745804269585,480.0,0.00041095,30]
[359196921,1745804269721,480.0,0.00041095,30]
[359196922,1745804269812,234.77,0.00041095,30]
[359196923,1745804269968,480.0,0.00041095,30]
[359196924,1745804270252,234.51938899,0.00041095,30]
[359196925,1745804272074,400.0,0.00041095,30]
[359196926,1745804272507,480.0,0.00041095,30]
[359196927,1745804272709,381.31774904,0.00041095,30]
[359196928,1745804273601,480.0,0.00041095,30]
[359196929,1745804274038,480.0,0.00041095,30]
[359196930,1745804274133,480.0,0.00041095,30]
[359196931,1745804274302,576.3395152,0.00041095,30]
[359196932,1745804274378,480.0,0.00041095,30]
[359196933,1745804274647,480.0,0.00041095,30]
[359196934,1745804274878,480.0,0.00041095,30]
[359196935,1745804275117,480.0,0.00041095,30]
[359196936,1745804275608,406.16,0.00041095,30]
[359196937,1745804276079,480.0,0.00041095,30]
[359196938,1745804276282,480.0,0.00041095,30]
[359196939,1745804276327,393.04534384,0.00041095,30]
[359196940,1745804276750,480.0,0.00041095,30]
[359196941,1745804276940,480.0,0.00041095,30]
[359196942,1745804276997,167.29802008,0.00041095,30]
[359196943,1745804277197,480.0,0.00041095,30]
[359196944,1745804277492,480.0,0.00041095,30]
[359196945,1745804277665,480.0,0.00041095,30]
[359196946,1745804277729,480.0,0.00041095,30]
[359196947,1745804277911,338.83879062,0.00041095,30]
[359196948,1745804277956,480.0,0.00041095,30]
[359196949,1745804278286,480.0,0.00041095,30]
[359196950,1745804278530,367.63,0.00041095,30]
[359196951,1745804279369,410.84554568,0.00041095,30]
[359196952,1745804279612,3000.0,0.00041096,30]
[359196953,1745804279757,480.0,0.00041095,30]
[359196954,1745804280059,335.50174459,0.00041095,30]
[359196955,1745804280447,363.09143948,0.00041095,30]
[359196956,1745804281090,599.1955169,0.00041095,30]
[359196957,1745804282118,480.0,0.00041095,30]
[359196958,1745804282364,425.50341436,0.00041095,30]
[359196959,1745804282459,514.74709134,0.00041095,30]
[359196960,1745804283044,480.0,0.00041095,30]
[359196961,1745804283080,348.94039082,0.00041095,30]
[359196962,1745804284293,480.0,0.00041095,30]
[359196963,1745804284410,421.79264068,0.00041095,30]
[359196964,1745804284885,334.77324077,0.00041095,30]
[359196965,1745804286129,480.0,0.00041095,30]
[359196966,1745804286378,323.06002677,0.00041095,30]
[359196967,1745804288296,480.0,0.00041095,30]
[359196968,1745804288536,489.32683028,0.00041095,30]
[359196969,1745804288578,424.53192766,0.00041095,30]
[359196970,1745804288613,425.9105674,0.00041095,30]
[359196971,1745804290307,480.0,0.00041095,30]
[359196972,1745804290573,480.0,0.00041095,30]
[359196973,1745804290778,480.0,0.00041095,30]
[359196974,1745804290876,613.09460275,0.00041095,30]
[359196975,1745804291044,438.83555467,0.00041095,30]
[359196976,1745804293398,480.0,0.00041095,30]
[359196977,1745804293433,480.0,0.00041095,30]
[359196978,1745804293579,480.0,0.00041095,30]
[359196979,1745804293663,165.74,0.00018841,2]
[359196980,1745804293694,480.0,0.00041095,30]
[359196981,1745804293858,515.08657492,0.00041095,30]
[359196982,1745804293971,386.80394592,0.00041095,30]
[359196983,1745804294191,414.68403775,0.00041095,30]
[359196984,1745804295003,400.0,0.00041095,30]
[359196985,1745804295312,480.0,0.00041095,30]
[359196986,1745804295607,339.29018774,0.00041095,30]
[359196987,1745804297774,480.0,0.00041095,30]
[359196988,1745804298033,342.77869834,0.00041095,30]
[359196989,1745804299554,412.89564122,0.00041095,30]
[359196990,1745804301023,430.27022715,0.00041095,30]
[359196991,1745804301896,413.13973086,0.00041095,30]
[359196992,1745804303196,453.95406052,0.00041095,30]
[359196993,1745804303870,480.0,0.00041095,30]
[359196994,1745804304115,348.43039332,0.00041095,30]
[359196995,1745804305081,480.0,0.00041095,30]
[359196996,1745804305321,392.82124344,0.00041095,30]
[359196997,1745804306428,504.19274643,0.00041095,30]
[359196998,1745804307843,461.97060447,0.00041095,30]
[359196999,1745804308634,480.0,0.00041095,30]
[359197000,1745804308891,385.24876271,0.00041095,30]
[359197001,1745804309655,480.0,0.00041095,30]
[359197002,1745804309773,564.31489546,0.00041095,30]
[359197003,1745804310421,480.0,0.00041095,30]
[359197004,1745804310846,480.0,0.00041095,30]
[359197005,1745804310878,536.332,0.00037632,49]
[359197006,1745804311123,480.0,0.00041095,30]
[359197007,1745804311394,480.0,0.00041095,30]
[359197008,1745804311617,488.01150025,0.00041095,30]
[359197009,1745804313516,416.37515955,0.00041095,30]
[359197010,1745804314292,480.0,0.00041095,30]
[359197011,1745804314550,335.74866358,0.00041095,30]
[359197012,1745804315041,480.0,0.00041095,30]
[359197013,1745804315479,448.80140892,0.00041095,30]
[359197014,1745804320177,480.0,0.00041095,30]
[359197015,1745804320222,440.89244468,0.00041095,30]
[359197016,1745804320408,428.2165945,0.00041095,30]
[359197017,1745804320674,480.0,0.00041095,30]
[359197018,1745804321207,343.9564745,0.00041095,30]
[359197019,1745804322264,480.0,0.00041095,30]
[359197020,1745804322532,433.32212842,0.00041095,30]
[359197021,1745804322829,480.0,0.00041095,30]
[359197022,1745804323389,480.0,0.00041095,30]
[359197023,1745804323429,331.39240619,0.00041095,30]
[359197024,1745804323666,326.87302584,0.00041095,30]
[359197025,1745804323957,480.0,0.00041095,30]
[359197026,1745804324052,394.02496318,0.00041095,30]
[359197027,1745804324328,480.0,0.00041095,30]
[359197028,1745804324573,422.22620169,0.00041095,30]
[359197029,1745804328688,480.0,0.00041095,30]
[359197030,1745804328942,266.61689485,0.00041095,30]
[359197031,1745804331109,526.98818908,0.00041095,30]
[359197032,1745804332213,480.0,0.00041095,30]
[359197033,1745804332446,480.0,0.00041095,30]
[359197034,1745804332692,319.4270265,0.00041095,30]
[359197035,1745804334450,480.0,0.00041095,30]
[359197036,1745804334633,412.12261339,0.00041095,30]
[359197037,1745804334700,480.0,0.00041095,30]
[359197038,1745804334943,434.77703656,0.00041095,30]
[359197039,1745804336610,480.0,0.00041095,30]
[359197040,1745804336850,336.48910818,0.00041095,30]
[359197041,1745804338761,515.275705,0.00041095,30]
[359197042,1745804339326,480.0,0.00041095,30]
[359197043,1745804339587,480.0,0.00041095,30]
[359197044,1745804339840,480.0,0.00041095,30]
[359197045,1745804340081,531.05984648,0.00041095,30]
[359197046,1745804340148,408.42213797,0.00041095,30]
[359197047,1745804340783,480.0,0.00041095,30]
[359197048,1745804341024,347.67691133,0.00041095,30]
[359197049,1745804343092,480.0,0.00041095,30]
[359197050,1745804343347,247.47697111,0.00041095,30]
[359197051,1745804343496,480.0,0.00041095,30]
[359197052,1745804343529,522.29,0.00041095,30]
[359197053,1745804343725,348.15989323,0.00041095,30]
[359197054,1745804344879,518.31389006,0.00041095,30]
[359197055,1745804348386,409.97096237,0.00041095,30]
[359197056,1745804349034,480.0,0.00041095,30]
[359197057,1745804349285,429.67265744,0.00041095,30]
[359197058,1745804351562,480.0,0.00041095,30]
[359197059,1745804351766,408.93693781,0.00041095,30]
[359197060,1745804351804,368.98532244,0.00041095,30]
[359197061,1745804351907,480.0,0.00041095,30]
[359197062,1745804352181,480.0,0.00041095,30]
[359197063,1745804352422,194.9872621,0.00041095,30]
[359197064,1745804353632,480.0,0.00041095,30]